fUSD/lending_fUSD_20240420
["ID","MTS","AMOUNT","RATE_DAILY","PERIOD"]
[323019088,1713592250519,-151.0,0.00015342,2]
[323019089,1713592250529,-189.512897,0.00015342,2]
[323019090,1713592250538,-500.0,0.00015342,2]
[323019091,1713592250548,-1610.21,0.00015342,2]
[323019092,1713592250558,-500.0,0.00015342,2]
[323019093,1713592250567,-500.0,0.00015342,2]
[323019094,1713592250576,-371.64764603,0.00015342,2]
[323019095,1713592250586,-1147.37,0.00015342,2]
[323019096,1713592250596,-1379.12,0.00015342,2]
[323019097,1713592250605,-500.0,0.00015342,2]
[323019098,1713592250616,-591.33,0.00015342,2]
[323019099,1713592250626,-679.8,0.00015342,2]
[323019100,1713592250635,-880.94,0.00015342,2]
[323019101,1713592250645,-151.0,0.00015342,2]
[323019102,1713592250654,-1837.55,0.00015342,2]
[323019103,1713592250664,-500.0,0.00015342,2]
[323019104,1713592250673,-153.813694,0.00015342,2]
[323019105,1713592250683,-500.0,0.00015342,2]
[323019106,1713592250693,-14950.61,0.00015342,2]
[323019107,1713592250703,-2266.82,0.00015342,2]
[323019108,1713592250712,-693.93,0.00015342,2]
[323019109,1713592250721,-991.06,0.00015342,2]
[323019110,1713592250731,-692.74,0.00015342,2]
[323019111,1713592250740,-1203.79,0.00015342,2]
[323019112,1713592250750,-1159.46,0.00015342,2]
[323019113,1713592250759,-947.12,0.00015342,2]
[323019114,1713592250769,-2294.99,0.00015342,2]
[323019115,1713592250780,-500.0,0.00015342,2]
[323019116,1713592250789,-421.01284378,0.00015342,2]
[323019117,1713592250800,-500.0,0.00015342,2]
[323019118,1713592250810,-2185.86,0.00015342,2]
[323019119,1713592250820,-914.1,0.00015342,2]
[323019120,1713592250831,-372.06985634,0.00015342,2]
[323019121,1713592250841,-1704.66,0.00015342,2]
[323019122,1713592250852,-542.12,0.00015342,2]
[323019123,1713592250862,-500.0,0.00015342,2]
[323019124,1713592250871,-1650.39,0.00015342,2]
[323019125,1713592250882,-1202.89,0.00015342,2]
[323019126,1713592250894,-559.59,0.00015342,2]
[323019127,1713592250905,-658.05,0.00015342,2]
[323019128,1713592250915,-4909.01,0.00015342,2]
[323019129,1713592250926,-500.0,0.00015342,2]
[323019130,1713592250936,-500.0,0.00015342,2]
[323019131,1713592250947,-500.0,0.00015342,2]
[323019132,1713592250957,-3981.7,0.00015342,2]
[323019133,1713592250967,-151.0,0.00015342,2]
[323019134,1713592250977,-500.0,0.00015342,2]
[323019135,1713592250987,-151.0,0.00015342,2]
[323019136,1713592250997,-2750.02,0.00015342,2]
[323019137,1713592251007,-500.0,0.00015342,2]
[323019138,1713592251017,-151.0,0.00015342,2]
[323019139,1713592251189,-500.0,0.00015342,2]
[323019140,1713592251199,-151.0,0.00015342,2]
[323019141,1713592251209,-188.444415,0.00015342,2]
[323019142,1713592251219,-188.444415,0.00015342,2]
[323019143,1713592251229,-188.444415,0.00015342,2]
[323019144,1713592251238,-188.444415,0.00015342,2]
[323019145,1713592251248,-151.0,0.00015342,2]
[323019146,1713592251259,-2322.46,0.00015342,2]
[323019147,1713592251270,-238.815007,0.00015342,2]
[323019148,1713592251280,-2966.08,0.00015342,2]
[323019149,1713592251290,-528.097295,0.00015342,2]
[323019150,1713592251302,-528.097295,0.00015342,2]
[323019151,1713592251313,-992.99,0.00015342,2]
[323019152,1713592251323,-528.097295,0.00015342,2]
[323019153,1713592251334,-574.36,0.00015342,2]
[323019154,1713592251344,-528.097295,0.00015342,2]
[323019155,1713592251354,-500.0,0.00015342,2]
[323019156,1713592251365,-188.444415,0.00015342,2]
[323019157,1713592251375,-18375.7,0.00015342,2]
[323019158,1713592251385,-188.444415,0.00015342,2]
[323019159,1713592251394,-528.097295,0.00015342,2]
[323019160,1713592251404,-587.1,0.00015342,2]
[323019161,1713592251414,-188.444415,0.00015342,2]
[323019162,1713592251423,-528.097295,0.00015342,2]
[323019163,1713592251434,-188.444415,0.00015342,2]
[323019164,1713592251443,-151.0,0.00015342,2]
[323019165,1713592251453,-151.0,0.00015342,2]
[323019166,1713592251462,-528.097295,0.00015342,2]
[323019167,1713592251471,-152.678993,0.00015342,2]
[323019168,1713592251481,-528.097295,0.00015342,2]
[323019169,1713592251490,-151.0,0.00015342,2]
[323019170,1713592251500,-1294.42,0.00015342,2]
[323019171,1713592251510,-151.0,0.00015342,2]
[323019172,1713592251521,-500.0,0.00015342,2]
[323019173,1713592251532,-500.0,0.00015342,2]
[323019174,1713592251542,-151.0,0.00015342,2]
[323019175,1713592251552,-2661.87,0.00015342,2]
[323019176,1713592251562,-1942.77,0.00015342,2]
[323019177,1713592251572,-4859.82,0.00015342,2]
[323019178,1713592251581,-500.0,0.00015342,2]
[323019179,1713592251591,-787.89,0.00015342,2]
[323019180,1713592251600,-1271.01,0.00015342,2]
[323019181,1713592251612,-151.0,0.00015342,2]
[323019182,1713592251621,-500.0,0.00015342,2]
[323019183,1713592251631,-151.0,0.00015342,2]
[323019184,1713592251641,-279.144252,0.00015342,2]
[323019185,1713592251651,-500.0,0.00015342,2]
[323019186,1713592251660,-500.0,0.00015342,2]
[323019187,1713592251670,-813.62,0.00015342,2]
[323019188,1713592251681,-500.0,0.00015342,2]
[323019189,1713592251690,-5013.87,0.00015342,2]
[323019190,1713592251700,-500.0,0.00015342,2]
[323019191,1713592251710,-500.0,0.00015342,2]
[323019192,1713592251720,-500.0,0.00015342,2]
[323019193,1713592251730,-500.0,0.00015342,2]
[323019194,1713592251739,-500.0,0.00015342,2]
[323019195,1713592251748,-500.0,0.00015342,2]
[323019196,1713592251758,-500.0,0.00015342,2]
[323019197,1713592251768,-500.0,0.00015342,2]
[323019198,1713592251777,-2223.3,0.00015342,2]
[323019199,1713592251786,-8798.16,0.00015342,2]
[323019200,1713592251796,-500.0,0.00015342,2]
[323019201,1713592251806,-1365.39,0.00015342,2]
[323019202,1713592251816,-784.79,0.00015342,2]
[323019203,1713592251825,-524.04,0.00015342,2]
[323019204,1713592251835,-813.77,0.00015342,2]
[323019205,1713592251844,-1590.01,0.00015342,2]
[323019206,1713592251854,-500.0,0.00015342,2]
[323019207,1713592251864,-500.0,0.00015342,2]
[323019208,1713592251873,-500.0,0.00015342,2]
[323019209,1713592251883,-257.702585,0.00015342,2]
[323019210,1713592251892,-878.55,0.00015342,2]
[323019211,1713592251902,-500.0,0.00015342,2]
[323019212,1713592251912,-1086.29,0.00015342,2]
[323019213,1713592251921,-500.0,0.00015342,2]
[323019214,1713592251931,-500.0,0.00015342,2]
[323019215,1713592251940,-840.54,0.00015342,2]
[323019216,1713592251950,-500.0,0.00015342,2]
[323019217,1713592251959,-1783.8,0.00015342,2]
[323019218,1713592251969,-1143.1,0.00015342,2]
[323019219,1713592251979,-500.0,0.00015342,2]
[323019220,1713592251988,-1243.73,0.00015342,2]
[323019221,1713592251998,-500.0,0.00015342,2]
[323019222,1713592252007,-610.36,0.00015342,2]
[323019223,1713592252017,-500.0,0.00015342,2]
[323019224,1713592252027,-151.0,0.00015342,2]
[323019225,1713592252037,-1005.52,0.00015342,2]
[323019226,1713592252046,-151.0,0.00015342,2]
[323019227,1713592252056,-1627.34,0.00015342,2]
[323019228,1713592252067,-151.0,0.00015342,2]
[323019229,1713592252076,-151.0,0.00015342,2]
[323019230,1713592252086,-500.0,0.00015342,2]
[323019231,1713592252097,-500.0,0.00015342,2]
[323019232,1713592252106,-2463.97,0.00015342,2]
[323019233,1713592252116,-151.0,0.00015342,2]
[323019234,1713592252125,-580.01,0.00015342,2]
[323019235,1713592252134,-500.0,0.00015342,2]
[323019236,1713592252146,-151.0,0.00015342,2]
[323019237,1713592252155,-566.27,0.00015342,2]
[323019238,1713592252165,-151.0,0.00015342,2]
[323019239,1713592252175,-151.0,0.00015342,2]
[323019240,1713592252184,-500.0,0.00015342,2]
[323019241,1713592252194,-1534.91,0.00015342,2]
[323019242,1713592252204,-690.01,0.00015342,2]
[323019243,1713592252214,-3874.24,0.00015342,2]
[323019244,1713592252223,-1387.92,0.00015342,2]
[323019245,1713592252232,-500.0,0.00015342,2]
[323019246,1713592252242,-1338.05,0.00015342,2]
[323019247,1713592252252,-509.8,0.00015342,2]
[323019248,1713592252263,-151.0,0.00015342,2]
[323019249,1713592252273,-992.12,0.00015342,2]
[323019250,1713592252282,-151.0,0.00015342,2]
[323019251,1713592252291,-3244.36,0.00015342,2]
[323019252,1713592252301,-151.0,0.00015342,2]
[323019253,1713592252311,-807.58,0.00015342,2]
[323019254,1713592252322,-500.0,0.00015342,2]
[323019255,1713592252338,-500.0,0.00015342,2]
[323019256,1713592252349,-151.0,0.00015342,2]
[323019257,1713592252362,-1468.96,0.00015342,2]
[323019258,1713592252372,-500.0,0.00015342,2]
[323019259,1713592252381,-500.0,0.00015342,2]
[323019260,1713592252391,-1980.49,0.00015342,2]
[323019261,1713592252401,-500.0,0.00015342,2]
[323019262,1713592252410,-5117.96,0.00015342,2]
[323019263,1713592252420,-732.68,0.00015342,2]
[323019264,1713592252429,-500.0,0.00015342,2]
[323019265,1713592252439,-151.0,0.00015342,2]
[323019266,1713592252448,-500.0,0.00015342,2]
[323019267,1713592252457,-151.0,0.00015342,2]
[323019268,1713592252467,-500.0,0.00015342,2]
[323019269,1713592252477,-151.0,0.00015342,2]
[323019270,1713592252486,-3610.24,0.00015342,2]
[323019271,1713592252495,-151.0,0.00015342,2]
[323019272,1713592252504,-152.584196,0.00015342,2]
[323019273,1713592252514,-2195.67,0.00015342,2]
[323019274,1713592252523,-164.965585,0.00015342,2]
[323019275,1713592252533,-500.0,0.00015342,2]
[323019276,1713592252542,-500.0,0.00015342,2]
[323019277,1713592252552,-164.965585,0.00015342,2]
[323019278,1713592252562,-164.965585,0.00015342,2]
[323019279,1713592252572,-164.965585,0.00015342,2]
[323019280,1713592252582,-151.0,0.00015342,2]
[323019281,1713592252591,-729.4,0.00015342,2]
[323019282,1713592252602,-151.0,0.00015342,2]
[323019283,1713592252613,-709.51,0.00015342,2]
[323019284,1713592252623,-151.0,0.00015342,2]
[323019285,1713592252632,-500.0,0.00015342,2]
[323019286,1713592252642,-1179.4,0.00015342,2]
[323019287,1713592252652,-151.0,0.00015342,2]
[323019288,1713592252661,-500.0,0.00015342,2]
[323019289,1713592252671,-164.965585,0.00015342,2]
[323019290,1713592252680,-2280.48,0.00015342,2]
[323019291,1713592252690,-164.965585,0.00015342,2]
[323019292,1713592252699,-2638.47,0.00015342,2]
[323019293,1713592252708,-164.965585,0.00015342,2]
[323019294,1713592252718,-164.965585,0.00015342,2]
[323019295,1713592252729,-1275.38,0.00015342,2]
[323019296,1713592252740,-1650.92,0.00015342,2]
[323019297,1713592252751,-936.99,0.00015342,2]
[323019298,1713592252763,-500.0,0.00015342,2]
[323019299,1713592252773,-157.980817,0.00015342,2]
[323019300,1713592252784,-500.0,0.00015342,2]
[323019301,1713592252793,-500.0,0.00015342,2]
[323019302,1713592252802,-500.0,0.00015342,2]
[323019303,1713592252811,-593.16,0.00015342,2]
[323019304,1713592252821,-500.0,0.00015342,2]
[323019305,1713592252830,-500.0,0.00015342,2]
[323019306,1713592252840,-500.0,0.00015342,2]
[323019307,1713592252852,-1045.95,0.00015342,2]
[323019308,1713592252862,-1084.2,0.00015342,2]
[323019309,1713592252870,-151.0,0.00015342,2]
[323019310,1713592252881,-151.0,0.00015342,2]
[323019311,1713592252891,-791.81,0.00015342,2]
[323019312,1713592252901,-151.0,0.00015342,2]
[323019313,1713592252911,-2170.86,0.00015342,2]
[323019314,1713592252920,-151.0,0.00015342,2]
[323019315,1713592252930,-1264.0,0.00015342,2]
[323019316,1713592252940,-766.62,0.00015342,2]
[323019317,1713592252950,-500.0,0.00015342,2]
[323019318,1713592252960,-500.0,0.00015342,2]
[323019319,1713592252969,-500.0,0.00015342,2]
[323019320,1713592252979,-2758.24,0.00015342,2]
[323019321,1713592252988,-233.141326,0.00015342,2]
[323019322,1713592252998,-782.83,0.00015342,2]
[323019323,1713592253007,-233.141326,0.00015342,2]
[323019324,1713592253017,-233.141326,0.00015342,2]
[323019325,1713592253027,-233.141326,0.00015342,2]
[323019326,1713592253037,-583.15,0.00015342,2]
[323019327,1713592253047,-500.0,0.00015342,2]
[323019328,1713592253056,-500.0,0.00015342,2]
[323019329,1713592253066,-3092.87,0.00015342,2]
[323019330,1713592253075,-877.86,0.00015342,2]
[323019331,1713592253085,-233.141326,0.00015342,2]
[323019332,1713592253095,-233.141326,0.00015342,2]
[323019333,1713592253105,-500.0,0.00015342,2]
[323019334,1713592253115,-233.141326,0.00015342,2]
[323019335,1713592253125,-233.141326,0.00015342,2]
[323019336,1713592253134,-370.5282231,0.00015342,2]
[323019337,1713592253145,-500.0,0.00015342,2]
[323019338,1713592253156,-1611.7,0.00015342,2]
[323019339,1713592253166,-1659.87,0.00015342,2]
[323019340,1713592253175,-500.0,0.00015342,2]
[323019341,1713592253185,-1140.61,0.00015342,2]
[323019342,1713592253194,-500.0,0.00015342,2]
[323019343,1713592253204,-1159.14,0.00015342,2]
[323019344,1713592253213,-2378.61,0.00015342,2]
[323019345,1713592253222,-593.76,0.00015342,2]
[323019346,1713592253231,-12106.72,0.00015342,2]
[323019347,1713592253241,-1297.79,0.00015342,2]
[323019348,1713592253250,-3785.38,0.00015342,2]
[323019349,1713592253260,-500.0,0.00015342,2]
[323019350,1713592253271,-228.627848,0.00015342,2]
[323019351,1713592253280,-500.0,0.00015342,2]
[323019352,1713592253290,-613.28,0.00015342,2]
[323019353,1713592253299,-3891.35,0.00015342,2]
[323019354,1713592253623,-875.63,0.00015342,2]
[323019355,1713592253633,-608.88,0.00015342,2]
[323019356,1713592253644,-552.55,0.00015342,2]
[323019357,1713592253655,-500.0,0.00015342,2]
[323019358,1713592253664,-5693.44,0.00015342,2]
[323019359,1713592253673,-1449.06,0.00015342,2]
[323019360,1713592253683,-151.0,0.00015342,2]
[323019361,1713592253692,-500.0,0.00015342,2]
[323019362,1713592253702,-151.0,0.00015342,2]
[323019363,1713592253711,-500.0,0.00015342,2]
[323019364,1713592253720,-151.0,0.00015342,2]
[323019365,1713592253730,-151.0,0.00015342,2]
[323019366,1713592253739,-500.0,0.00015342,2]
[323019367,1713592253748,-151.0,0.00015342,2]
[323019368,1713592253757,-151.0,0.00015342,2]
[323019369,1713592253766,-218.944853,0.00015342,2]
[323019370,1713592253775,-151.0,0.00015342,2]
[323019371,1713592253784,-218.944853,0.00015342,2]
[323019372,1713592253794,-270.42728545,0.00015342,2]
[323019373,1713592253804,-2009.11,0.00015342,2]
[323019374,1713592253813,-218.944853,0.00015342,2]
[323019375,1713592253823,-151.0,0.00015342,2]
[323019376,1713592253833,-218.944853,0.00015342,2]
[323019377,1713592253843,-500.0,0.00015342,2]
[323019378,1713592253852,-500.0,0.00015342,2]
[323019379,1713592253862,-2331.04,0.00015342,2]
[323019380,1713592253872,-151.0,0.00015342,2]
[323019381,1713592253882,-218.944853,0.00015342,2]
[323019382,1713592253892,-151.0,0.00015342,2]
[323019383,1713592253901,-218.944853,0.00015342,2]
[323019384,1713592253911,-8683.86,0.00015342,2]
[323019385,1713592253920,-220.558629,0.00015342,2]
[323019386,1713592253930,-218.944853,0.00015342,2]
[323019387,1713592253940,-1537.5,0.00015342,2]
[323019388,1713592253949,-500.0,0.00015342,2]
[323019389,1713592253958,-1252.64,0.00015342,2]
[323019390,1713592253968,-500.0,0.00015342,2]
[323019391,1713592253978,-218.944853,0.00015342,2]
[323019392,1713592253988,-2944.5,0.00015342,2]
[323019393,1713592253997,-500.4,0.00015342,2]
[323019394,1713592254007,-500.0,0.00015342,2]
[323019395,1713592254016,-1605.3,0.00015342,2]
[323019396,1713592254026,-500.0,0.00015342,2]
[323019397,1713592254036,-694.6,0.00015342,2]
[323019398,1713592254045,-1878.96,0.00015342,2]
[323019399,1713592254055,-2566.41,0.00015342,2]
[323019400,1713592254064,-1141.28,0.00015342,2]
[323019401,1713592254074,-2562.39,0.00015342,2]
[323019402,1713592254083,-500.0,0.00015342,2]
[323019403,1713592254093,-3066.84,0.00015342,2]
[323019404,1713592254102,-500.0,0.00015342,2]
[323019405,1713592254114,-500.0,0.00015342,2]
[323019406,1713592254123,-625.29,0.00015342,2]
[323019407,1713592254133,-500.0,0.00015342,2]
[323019408,1713592254142,-500.0,0.00015342,2]
[323019409,1713592254152,-1116.99,0.00015342,2]
[323019410,1713592254162,-500.0,0.00015342,2]
[323019411,1713592254171,-151.0,0.00015342,2]
[323019412,1713592254181,-151.0,0.00015342,2]
[323019413,1713592254191,-151.0,0.00015342,2]
[323019414,1713592254201,-2603.5,0.00015342,2]
[323019415,1713592254210,-151.0,0.00015342,2]
[323019416,1713592254220,-151.0,0.00015342,2]
[323019417,1713592254229,-500.0,0.00015342,2]
[323019418,1713592254239,-151.0,0.00015342,2]
[323019419,1713592254249,-151.0,0.00015342,2]
[323019420,1713592254260,-500.0,0.00015342,2]
[323019421,1713592254269,-151.0,0.00015342,2]
[323019422,1713592254278,-1544.91,0.00015342,2]
[323019423,1713592254288,-500.0,0.00015342,2]
[323019424,1713592254297,-2306.74,0.00015342,2]
[323019425,1713592254306,-1449.07,0.00015342,2]
[323019426,1713592254316,-3213.45,0.00015342,2]
[323019427,1713592254325,-500.0,0.00015342,2]
[323019428,1713592254335,-1032.64726523,0.00015367,2]
[323019429,1713592254344,-9036.47264662,0.0001539,2]
[323019430,1713592254354,-200.0,0.00015397,2]
[323019431,1713592254364,-9600.5033236,0.000154,2]
[323019432,1713592254373,-1544.96366674,0.00015415,2]
[323019433,1713592254382,-3460.51043021,0.00015435,2]
[323019434,1713592254392,-760.0,0.00015471,2]
[323019435,1713592254401,-1000.0,0.00015491,2]
[323019436,1713592254411,-9509.4928782,0.00015496,2]
[323019437,1713592254420,-418.94,0.000155,2]
[323019438,1713592254429,-150.0,0.000155,2]
[323019439,1713592254438,-1032.64726523,0.00015501,2]
[323019440,1713592254448,-151.0,0.00015501,2]
[323019441,1713592254457,-158.302022,0.00015501,2]
[323019442,1713592254466,-5165.0,0.00015507,2]
[323019443,1713592254476,-151.0,0.00015516,2]
[323019444,1713592254485,-233.5883,0.00015516,2]
[323019445,1713592254493,-151.0,0.00015516,2]
[323019446,1713592254503,-193.29446844,0.00015516,2]
[323019447,1713592254511,-862.2635723,0.00015516,2]
[323019448,1713592254520,-447.79718093,0.00015516,2]
[323019449,1713592254529,-156.9806404,0.00015574,2]
[323019450,1713592254538,-234.68,0.00015579,2]
[323019451,1713592254547,-150.0,0.00015599,2]
[323019452,1713592254556,-151.0,0.000156,2]
[323019453,1713592254565,-10057.0,0.000156,2]
[323019454,1713592254574,-426.98655778,0.00015606,2]
[323019455,1713592254583,-206.67486349,0.00015614,2]
[323019456,1713592254593,-164.43136197,0.00015614,2]
[323019457,1713592254602,-209.54531608,0.00015614,2]
[323019458,1713592254611,-237.26705284,0.00015614,2]
[323019459,1713592254620,-169.77925125,0.00015614,2]
[323019460,1713592254629,-155.23723071,0.00015614,2]
[323019461,1713592254638,-309.45581988,0.00015614,2]
[323019462,1713592254647,-155.0,0.00015614,2]
[323019463,1713592254656,-1305.10440471,0.00015614,2]
[323019464,1713592254665,-155.39166245,0.00015614,2]
[323019465,1713592254674,-155.16179399,0.00015614,2]
[323019466,1713592254683,-200.0,0.00015614,2]
[323019467,1713592254692,-488.36496742,0.00015614,2]
[323019468,1713592254702,-155.04578764,0.00015614,2]
[323019469,1713592254711,-155.38310756,0.00015614,2]
[323019470,1713592254721,-192.31094939,0.00015614,2]
[323019471,1713592254730,-196.21304267,0.00015614,2]
[323019472,1713592254739,-201.66262945,0.00015614,2]
[323019473,1713592254749,-218.22233001,0.00015614,2]
[323019474,1713592254758,-156.8584915,0.00015614,2]
[323019475,1713592254767,-162.43698608,0.00015614,2]
[323019476,1713592254777,-1407.22076973,0.00015614,2]
[323019477,1713592254786,-159.59821989,0.00015614,2]
[323019478,1713592254796,-158.27585616,0.00015614,2]
[323019479,1713592254805,-156.00899902,0.00015614,2]
[323019480,1713592254815,-3398.06612876,0.00015614,2]
[323019481,1713592254824,-155.28759072,0.00015614,2]
[323019482,1713592254833,-155.34423033,0.00015614,2]
[323019483,1713592254842,-479.43175891,0.00015614,2]
[323019484,1713592254852,-155.26109855,0.00015614,2]
[323019485,1713592254861,-155.53517915,0.00015614,2]
[323019486,1713592254876,-264.05975864,0.00015614,2]
[323019487,1713592254885,-151.0,0.00015614,2]
[323019488,1713592254896,-151.0,0.00015614,2]
[323019489,1713592254905,-168.167123,0.00015614,2]
[323019490,1713592254916,-151.0,0.00015614,2]
[323019491,1713592254925,-151.0,0.00015614,2]
[323019492,1713592254935,-151.0,0.00015614,2]
[323019493,1713592254944,-168.167123,0.00015614,2]
[323019494,1713592254954,-86483.48516338,0.00015615,2]
[323019495,1713592254963,-173.02804405,0.00015615,2]
[323019496,1713592254973,-5752.61946589,0.00015615,2]
[323019497,1713592254982,-151.0,0.00015615,2]
[323019498,1713592254992,-151.0,0.00015615,2]
[323019499,1713592255001,-199.025519,0.00015615,2]
[323019500,1713592255010,-151.0,0.00015615,2]
[323019501,1713592255020,-199.025519,0.00015615,2]
[323019502,1713592255029,-151.0,0.00015615,2]
[323019503,1713592255038,-153.027039,0.00015615,2]
[323019504,1713592255048,-274.798174,0.00015615,2]
[323019505,1713592255057,-274.798174,0.00015615,2]
[323019506,1713592255067,-151.0,0.00015615,2]
[323019507,1713592255076,-151.0,0.00015615,2]
[323019508,1713592255086,-218.944853,0.00015615,2]
[323019509,1713592255095,-151.0,0.00015615,2]
[323019510,1713592255105,-196.008684,0.00015615,2]
[323019511,1713592255118,-218.944853,0.00015615,2]
[323019512,1713592255128,-151.0,0.00015615,2]
[323019513,1713592255137,-229.00749,0.00015615,2]
[323019514,1713592255147,-151.0,0.00015616,2]
[323019515,1713592255156,-153.343704,0.00015616,2]
[323019516,1713592255166,-151.0,0.00015616,2]
[323019517,1713592255176,-151.0,0.00015616,2]
[323019518,1713592255185,-151.0,0.00015616,2]
[323019519,1713592255195,-500.0,0.00015616,2]
[323019520,1713592255204,-500.0,0.00015616,2]
[323019521,1713592255213,-500.0,0.00015616,2]
[323019522,1713592255222,-500.0,0.00015616,2]
[323019523,1713592255232,-500.0,0.00015616,2]
[323019524,1713592255241,-500.0,0.00015616,2]
[323019525,1713592255250,-530.97,0.00015616,2]
[323019526,1713592255260,-500.0,0.00015616,2]
[323019527,1713592255271,-500.0,0.00015616,2]
[323019528,1713592255280,-500.0,0.00015616,2]
[323019529,1713592255289,-630.86663353,0.00015616,2]
[323019530,1713592255299,-507.24,0.00015616,2]
[323019531,1713592255310,-500.0,0.00015616,2]
[323019532,1713592255320,-677.3,0.00015616,2]
[323019533,1713592255329,-500.0,0.00015616,2]
[323019534,1713592255339,-500.0,0.00015616,2]
[323019535,1713592255348,-500.0,0.00015616,2]
[323019536,1713592255357,-727.12,0.00015616,2]
[323019537,1713592255370,-500.0,0.00015616,2]
[323019538,1713592255379,-500.0,0.00015616,2]
[323019539,1713592255389,-500.0,0.00015616,2]
[323019540,1713592255399,-500.0,0.00015616,2]
[323019541,1713592255408,-500.0,0.00015616,2]
[323019542,1713592255417,-553.83,0.00015616,2]
[323019543,1713592255426,-500.0,0.00015616,2]
[323019544,1713592255435,-608.21,0.00015616,2]
[323019545,1713592255444,-548.79,0.00015616,2]
[323019546,1713592255453,-500.0,0.00015616,2]
[323019547,1713592255462,-151.0,0.00015616,2]
[323019548,1713592255472,-500.0,0.00015616,2]
[323019549,1713592255481,-151.0,0.00015616,2]
[323019550,1713592255491,-199.025519,0.00015616,2]
[323019551,1713592255500,-500.0,0.00015616,2]
[323019552,1713592255509,-199.025519,0.00015616,2]
[323019553,1713592255518,-500.0,0.00015616,2]
[323019554,1713592255528,-592.74,0.00015616,2]
[323019555,1713592255537,-151.0,0.00015616,2]
[323019556,1713592255547,-156.110932,0.00015616,2]
[323019557,1713592255556,-199.025519,0.00015616,2]
[323019558,1713592255566,-500.0,0.00015616,2]
[323019559,1713592255575,-199.025519,0.00015616,2]
[323019560,1713592255585,-151.0,0.00015616,2]
[323019561,1713592255594,-157.120755,0.00015616,2]
[323019562,1713592255605,-500.0,0.00015616,2]
[323019563,1713592255615,-500.0,0.00015616,2]
[323019564,1713592255625,-500.0,0.00015616,2]
[323019565,1713592255634,-500.0,0.00015616,2]
[323019566,1713592255643,-687.78,0.00015616,2]
[323019567,1713592255653,-553.15283242,0.00015616,2]
[323019568,1713592255662,-500.0,0.00015616,2]
[323019569,1713592255672,-500.0,0.00015616,2]
[323019570,1713592255689,-500.0,0.00015616,2]
[323019571,1713592255699,-500.0,0.00015616,2]
[323019572,1713592255708,-500.0,0.00015616,2]
[323019573,1713592255717,-500.0,0.00015616,2]
[323019574,1713592255727,-500.0,0.00015616,2]
[323019575,1713592255736,-500.0,0.00015616,2]
[323019576,1713592255746,-550.99,0.00015616,2]
[323019577,1713592255755,-500.0,0.00015616,2]
[323019578,1713592255764,-500.0,0.00015616,2]
[323019579,1713592255774,-500.0,0.00015616,2]
[323019580,1713592255783,-791.1,0.00015616,2]
[323019581,1713592255793,-174.1838483,0.00015616,2]
[323019582,1713592255802,-500.0,0.00015616,2]
[323019583,1713592255811,-500.0,0.00015616,2]
[323019584,1713592255821,-720.18,0.00015616,2]
[323019585,1713592255830,-500.0,0.00015616,2]
[323019586,1713592255839,-500.0,0.00015616,2]
[323019587,1713592255849,-500.0,0.00015616,2]